bitfinex/quotes_ETHUSD_20220103
["timestamp","ask_amount","ask_price","bid_price","bid_amount"]
[1641248664390,0.66678,3750.8,3750.3,4.4162]
[1641248664588,0.66678,3750.8,3750.2,10.88028654]
[1641248664788,0.00227369,3750.7,3750.2,10.88028654]
[1641248664988,0.00227369,3750.7,3750.3,1.04960204]
[1641248669881,18.15580398,3752.7,3750.3,1.04960204]
[1641248670076,0.01554,3751.4,3750.4,7.10762913]
[1641248670272,0.00170527,3751.0,3750.4,4.53850527]
[1641248670472,0.00170527,3751.0,3750.5,0.00113684]
[1641248670675,0.66791685,3750.9,3750.5,0.00113684]
[1641248671073,0.66678,3750.9,3750.5,0.00113684]
[1641248671476,0.66678,3750.9,3750.4,0.00170527]
[1641248671673,0.66678,3750.9,3750.5,0.03668683]
[1641248674933,0.66678,3750.9,3750.6,0.01144868]
[1641248679801,0.02354527,3751.4,3750.6,0.01144868]
[1641248680223,0.00341054,3751.3,3750.6,0.01144868]
[1641248680629,0.00284212,3751.2,3750.6,0.01144868]
[1641248680930,0.0022737,3751.1,3750.6,0.01144868]
[1641248681329,0.00341054,3751.3,3750.6,0.01144868]
[1641248681529,0.00341054,3751.3,3751.1,1.18333033]
[1641248681832,0.02354527,3751.4,3751.1,1.18333033]
[1641248681833,0.00284212,3751.2,3751.1,1.18333033]
[1641248683033,0.00284212,3751.2,3751.1,1.2200762]
[1641248685589,0.00284212,3751.2,3751.1,1.2317801]
[1641248685786,0.00368744,3751.2,3751.1,0.2317801]
[1641248689242,0.00368744,3751.2,3750.9,0.6666601]
[1641248689746,0.0022737,3751.1,3750.9,0.6166601]
[1641248690547,1.33344,3751.6,3750.9,0.6166601]
[1641248690548,1.31010429,3751.6,3750.9,0.6166601]
[1641248690747,0.02354527,3751.4,3750.9,0.6166601]
[1641248691048,0.02354527,3751.4,3750.5,0.105359]
[1641248691049,1.33459684,3751.3,3750.5,0.105359]
[1641248691497,1.33459684,3751.3,3750.6,0.00284212]
[1641248691992,0.66674,3751.0,3750.6,0.00284212]
[1641248696636,0.00201027,3750.9,3750.6,0.00284212]
[1641248700286,0.00201027,3750.9,3750.7,1.15028026]
[1641248700785,0.00201027,3750.9,3750.8,0.00170527]
[1641248703429,0.00201027,3750.9,3750.8,6.82687906]
[1641248703631,0.00201027,3750.9,3750.8,4.29240527]
[1641248703834,0.00201027,3750.9,3750.8,6.7858296]
[1641248704030,0.00201027,3750.9,3750.8,4.29240527]
[1641248706692,0.00201027,3750.9,3750.8,6.81573519]
[1641248706888,0.00201027,3750.9,3750.8,4.29240527]
[1641248707992,0.63470711,3751.9,3750.8,4.29240527]
[1641248708194,0.63470711,3751.9,3751.1,0.6665413]
[1641248708392,0.00284212,3751.8,3751.3,1.3621508]
[1641248708796,0.0022737,3751.7,3751.3,1.3621508]
[1641248709196,0.63470711,3751.9,3751.3,1.3621508]
[1641248709197,0.00170528,3751.6,3751.3,1.3621508]
[1641248709597,0.00113685,3751.5,3751.3,1.3621508]
[1641248712562,0.00113685,3751.5,3751.3,2.0286642]
[1641248715986,1.28403685,3752.8,3751.3,2.0286642]
[1641248716187,1.28403685,3752.8,3751.6,0.6664542]
[1641248716387,0.00682108,3752.7,3751.6,0.6664542]
[1641248716686,0.00625266,3752.6,3752.0,1.22838674]
[1641248716887,0.66645,3752.5,3752.0,1.22838674]
[1641248717088,0.67213424,3752.5,3752.0,1.11324919]
[1641248717287,0.00511581,3752.4,3752.0,1.11324919]
[1641248717741,0.00454739,3752.3,3752.0,1.11324919]
[1641248718140,0.00397897,3752.2,3752.0,1.11324919]
[1641248718542,0.00341054,3752.1,3751.5,9.1151654]
[1641248718942,0.00284212,3752.0,3751.5,9.1151654]
[1641248719341,0.0022737,3751.9,3751.5,9.1151654]
[1641248719741,0.00170527,3751.8,3751.7,1.1644428]
[1641248719944,0.00170527,3751.8,3751.5,7.7824]
[1641248720141,0.00170527,3751.8,3751.5,3.7847]
[1641248720342,0.00194092,3752.1,3751.5,3.7847]
[1641248720343,0.00113685,3751.7,3751.5,3.7847]
[1641248720543,0.61955777,3752.5,3751.5,3.7847]
[1641248720742,0.00170527,3752.0,3751.5,3.7847]
[1641248721141,0.00113685,3751.9,3751.5,3.7847]
[1641248721579,0.00511581,3752.6,3751.6,1.14317767]
[1641248721980,0.00454739,3752.5,3751.6,1.14317767]
[1641248722184,0.67101739,3752.5,3751.6,1.14317767]
[1641248722385,0.00397896,3752.4,3751.6,1.14317767]
[1641248722786,0.00341054,3752.3,3751.6,1.14317767]
[1641248722988,0.00341054,3752.3,3751.6,1.15537436]
[1641248723187,0.00284212,3752.2,3751.6,1.15537436]
[1641248723589,2.78053824,3753.2,3751.6,1.15537436]
[1641248723590,0.00227369,3752.1,3751.6,1.15537436]
[1641248723987,0.00795793,3753.1,3751.6,1.14317767]
[1641248724387,0.0073895,3753.0,3751.6,1.14317767]
[1641248724887,0.66642,3752.7,3751.6,1.14317767]
[1641248725344,0.00511581,3752.6,3751.6,1.14317767]
[1641248725544,0.00511581,3752.6,3751.5,3.7847]
[1641248725744,0.00454739,3752.5,3751.5,3.7847]
[1641248726150,0.00397896,3752.4,3751.5,3.7847]
[1641248726345,0.6665,3752.3,3751.5,3.7847]
[1641248726549,0.66991054,3752.3,3751.5,3.7847]
[1641248726750,0.00284212,3752.2,3751.5,3.7847]
[1641248727048,0.00227369,3752.1,3751.5,3.7847]
[1641248727447,0.00511581,3752.6,3751.5,3.7847]
[1641248727848,0.00454739,3752.5,3751.5,3.7847]
[1641248728049,0.67100739,3752.5,3751.5,3.7847]
[1641248728249,0.00397896,3752.4,3751.5,3.7847]
[1641248728653,0.00341054,3752.3,3751.5,3.7847]
[1641248729091,0.00284212,3752.2,3751.5,3.7847]
[1641248729291,0.00454357,3752.2,3751.5,3.7847]
[1641248729492,0.00227369,3752.1,3751.5,3.7847]
[1641248730097,0.00227369,3752.1,3751.6,0.6664189]
[1641248730292,0.00227369,3752.1,3751.6,3.18907181]
[1641248730693,0.00227369,3752.1,3751.6,0.6664189]
[1641248731695,0.00227369,3752.1,3751.7,2.51161419]
[1641248731893,0.00227369,3752.1,3751.6,0.6664189]
[1641248733442,0.00227369,3752.1,3751.7,0.6663945]
[1641248736491,0.00227369,3752.1,3752.0,1.21067249]
[1641248736989,0.00227369,3752.1,3751.7,0.6663945]
[1641248738592,0.00227369,3752.1,3751.8,1.32048008]
[1641248740936,0.00227369,3752.1,3751.8,3.8598813]
[1641248741335,0.00227369,3752.1,3751.8,3.89232608]
[1641248742337,0.00227369,3752.1,3751.8,1.32048008]
[1641248742538,0.00227369,3752.1,3751.8,3.82616563]
[1641248742935,0.00227369,3752.1,3751.8,1.32048008]
[1641248743338,0.00227369,3752.1,3751.8,4.14816056]
[1641248743542,0.00227369,3752.1,3751.9,2.2427]
[1641248743739,0.00227369,3752.1,3751.9,2.9090685]
[1641248744596,0.00227369,3752.1,3751.9,5.46241364]
[1641248744796,0.00227369,3752.1,3751.9,1.9090685]
[1641248746601,0.00227369,3752.1,3751.9,2.9090685]
[1641248746806,0.00227369,3752.1,3751.9,1.9090685]
[1641248748538,0.00227369,3752.1,3751.9,2.9090685]
[1641248748738,0.00227369,3752.1,3751.9,1.9090685]
[1641248750348,0.00227369,3752.1,3751.9,1.2427]
[1641248751493,0.00227369,3752.1,3752.0,1.27614483]
[1641248757852,0.00227369,3752.1,3752.0,2.27614483]
[1641248758052,0.00227369,3752.1,3752.0,1.27614483]
[1641248759092,0.62457514,3752.8,3752.0,1.27614483]
[1641248759491,1.99922,3753.0,3752.0,1.27614483]
[1641248759492,0.00341054,3752.7,3752.0,1.27614483]
[1641248759891,1.33275,3753.0,3752.0,1.27614483]
[1641248759892,0.00284212,3752.6,3752.0,1.27614483]
[1641248760291,0.0022737,3752.5,3752.0,1.27614483]
[1641248760693,0.00170527,3752.4,3752.0,2.27614483]
[1641248761095,0.00113685,3752.3,3752.0,2.27614483]
[1641248761295,0.00113685,3752.3,3752.0,1.27614483]
[1641248761496,0.00454739,3752.9,3752.0,1.27614483]
[1641248761693,0.00154212,3752.2,3752.0,1.27614483]
[1641248761894,0.00154212,3752.2,3752.1,0.00454739]
[1641248763549,0.00154212,3752.2,3752.1,0.03547581]
[1641248766051,0.00154212,3752.2,3752.0,3.27513693]
[1641248766052,0.00154212,3752.2,3752.0,2.81061274]
[1641248766489,0.00154212,3752.2,3752.0,1.27614483]
[1641248768195,0.00154212,3752.2,3752.1,2.52252173]
[1641248768594,0.00154212,3752.2,3752.1,3.52252173]
[1641248768995,0.00154212,3752.2,3752.1,2.58402173]
[1641248769198,0.00154212,3752.2,3752.1,0.0615]
[1641248769399,0.03247053,3752.2,3752.1,0.0615]
[1641248773750,0.03247053,3752.2,3752.1,2.5431173]
[1641248774012,0.03247053,3752.2,3752.1,0.0615]
[1641248774413,0.03247053,3752.2,3752.1,2.53611824]
[1641248774613,0.03247053,3752.2,3752.1,0.0515]
[1641248775119,0.03247053,3752.2,3752.1,2.51616152]
[1641248775315,0.03247053,3752.2,3752.1,3.51616152]
[1641248775516,0.03247053,3752.2,3752.1,1.0515]
[1641248775915,0.03247053,3752.2,3752.1,3.5733892]
[1641248776217,7.053e-05,3752.2,3752.1,3.5733892]
[1641248776817,7.053e-05,3752.2,3752.1,19.1733892]
[1641248781386,7.053e-05,3752.2,3752.1,19.4733892]
[1641248781884,7.053e-05,3752.2,3752.1,19.48594494]
[1641248782287,0.948699,3754.2,3753.6,1.27036821]
[1641248782696,0.01136847,3754.1,3753.6,1.27036821]
[1641248783092,0.01080005,3754.0,3753.6,1.27036821]
[1641248783393,0.01023162,3753.9,3753.4,15.6]
[1641248783592,0.01023162,3753.9,3753.5,0.66604]
[1641248783792,0.0096632,3753.8,3753.6,0.66603]
[1641248784295,0.00909478,3753.7,3753.6,0.54117379]
[1641248784492,0.00909478,3753.7,3753.4,0.105359]
[1641248784693,0.00909478,3753.7,3753.5,1.3320918]
[1641248784896,0.00852635,3753.6,3753.5,1.3320918]
[1641248785446,0.00852635,3753.6,3753.5,0.6660418]
[1641248785643,0.00852635,3753.6,3753.4,0.105359]
[1641248786047,0.00795793,3753.5,3753.4,0.105359]
[1641248786848,0.00795793,3753.5,3753.4,1.105359]
[1641248787048,0.00795793,3753.5,3753.4,0.105359]
[1641248787849,0.948699,3754.2,3753.4,0.105359]
[1641248787850,0.948699,3754.2,3753.5,14.21745207]
[1641248788250,0.00341054,3754.1,3753.5,14.21745207]
[1641248788653,0.00284212,3754.0,3753.5,14.21745207]
[1641248789105,0.00227369,3753.9,3753.5,14.21745207]
[1641248789509,0.00170527,3753.8,3753.5,14.21745207]
[1641248789807,0.00113685,3753.7,3753.5,14.21745207]
[1641248793145,0.00113685,3753.7,3753.4,0.105359]
[1641248793343,0.00120299,3753.6,3753.4,0.105359]
[1641248793944,0.00120299,3753.6,3753.5,0.03091674]
[1641248803654,0.00120299,3753.6,3753.4,0.105359]
[1641248804596,0.66743299,3753.6,3753.4,0.105359]
[1641248804799,1.3252799,3753.5,3753.4,0.105359]
[1641248805004,1.3252799,3753.5,3753.4,0.13627665]
[1641248805202,1.3252799,3753.5,3753.4,0.02433278]
[1641248805801,4.09099913,3753.5,3753.4,0.02433278]
[1641248806001,4.0422987,3753.5,3753.4,0.02433278]
[1641248806403,4.0422987,3753.5,3753.1,0.06459707]
[1641248806603,0.66637,3752.9,3752.0,1.2638]
[1641248806803,0.66639,3752.5,3752.0,1.2638]
[1641248807003,1.13790736,3752.3,3751.6,3.9668]
[1641248807304,1.13790736,3752.3,3752.0,0.105359]
[1641248807502,1.61138,3752.9,3752.0,0.105359]
[1641248807759,1.61138,3752.9,3752.1,0.00795793]
[1641248807961,1.33286,3752.5,3752.1,0.16215793]
[1641248808160,0.66644,3752.5,3752.1,0.16215793]
[1641248808360,0.66644,3752.5,3752.2,0.0073895]
[1641248809461,1.93979818,3752.5,3751.6,0.4384485]
[1641248809659,1.93979818,3752.5,3751.5,6.9167]
[1641248809660,0.66647,3752.1,3751.5,6.9167]
[1641248809960,0.66647,3752.1,3750.8,10.18544969]
[1641248809961,0.66647,3752.1,3751.7,0.00284212]
[1641248810360,0.66647,3752.1,3751.5,0.00397897]
[1641248810761,0.66647,3752.1,3751.7,0.03093067]
[1641248811160,0.66647,3752.1,3751.8,0.0022737]
[1641248812810,1.33299,3752.1,3751.8,0.0022737]
[1641248813511,0.66647,3752.1,3751.8,0.0022737]
[1641248814311,0.66647,3752.1,3751.8,0.1076327]
[1641248814712,0.66748362,3752.1,3751.9,0.00170527]
[1641248815579,0.96748362,3752.1,3751.9,0.00170527]
[1641248816278,0.99841335,3752.1,3751.9,0.00170527]
[1641248816682,0.69841335,3752.1,3751.9,0.00170527]
[1641248817482,0.69841335,3752.1,3751.8,0.00706427]
[1641248823353,1.36493335,3752.1,3751.8,0.00706427]
[1641248823553,1.66493335,3752.1,3751.8,0.00706427]
[1641248824357,1.33312,3752.0,3751.8,0.00706427]
[1641248824554,2.66626,3752.0,3751.8,0.00706427]
[1641248826058,0.00100181,3751.9,3751.8,0.00706427]
[1641248826259,1.11560472,3751.9,3751.8,0.00706427]
[1641248829204,1.11560472,3751.9,3751.6,0.10252327]
[1641248829410,0.66661,3751.8,3751.6,0.10252327]
[1641248829603,1.33325,3751.8,3751.7,0.00113685]
[1641248830862,2.0,3753.6,3753.5,6.84873667]
[1641248831061,0.948699,3754.2,3753.6,0.13819997]
[1641248831262,1.01224775,3755.3,3754.1,0.01237566]
[1641248831463,1.01224775,3755.3,3754.8,0.01259199]
[1641248831661,0.01224775,3755.3,3754.8,0.01259199]
[1641248833065,0.01224775,3755.3,3754.8,15.61259199]
[1641248833268,0.01224775,3755.3,3754.8,0.2]
[1641248833466,0.01224775,3755.3,3754.8,0.1]
[1641248833665,0.01224775,3755.3,3754.7,30.90392166]
[1641248834121,0.01224775,3755.3,3754.8,1.0]
[1641248834723,0.01224775,3755.3,3754.9,15.6]
[1641248834919,0.01224775,3755.3,3754.8,1.0]
[1641248835119,0.03648427,3755.0,3754.8,1.0]
[1641248835719,0.06738979,3755.0,3754.8,1.0]
[1641248836124,1.33671517,3756.2,3754.8,1.0]
[1641248836525,0.00113685,3755.2,3754.8,1.0]
[1641248836727,0.0011341,3754.9,3754.8,1.0]
[1641248837024,0.0011341,3754.9,3754.8,1.00113684]
[1641248838058,0.0011341,3754.9,3754.8,16.60113684]
[1641248838258,0.0011341,3754.9,3754.8,1.00113684]
[1641248838661,0.0011341,3754.9,3754.8,16.90113684]
[1641248838858,0.0011341,3754.9,3754.8,16.60113684]
[1641248839058,0.0011341,3754.9,3754.8,1.30113684]
[1641248841260,0.0011341,3754.9,3754.8,1.33204281]
[1641248843120,0.0011341,3754.9,3754.8,1.03204281]
[1641248843620,0.0011341,3754.9,3754.8,1.33204281]
[1641248844824,1.35360585,3756.6,3754.8,1.33204281]
[1641248845029,1.35360585,3756.6,3754.8,1.33317966]
[1641248845269,0.00682108,3756.4,3754.9,0.00170527]
[1641248845667,0.00625266,3756.3,3754.9,0.00170527]
[1641248846067,0.00568423,3756.2,3754.9,0.00170527]
[1641248846469,0.00511581,3756.1,3754.9,0.00170527]
[1641248846868,0.00454739,3756.0,3754.9,0.00170527]
[1641248847268,1.38822239,3756.4,3754.9,0.00170527]
[1641248847269,0.00397896,3755.9,3754.9,0.00170527]
[1641248847469,0.00492593,3755.9,3754.9,0.01303499]
[1641248847675,0.00341054,3755.8,3754.9,0.01303499]
[1641248847873,0.00341054,3755.8,3755.0,0.00113685]
[1641248848073,0.00094697,3755.9,3755.0,0.00113685]
[1641248848074,0.00284212,3755.7,3755.0,0.00113685]
[1641248848277,0.00284212,3755.7,3755.0,15.60113685]
[1641248848476,0.00227369,3755.6,3755.1,2.47184808]
[1641248848775,0.00170527,3755.5,3755.0,0.00113685]
[1641248849002,0.00170527,3755.5,3755.0,2.59356034]
[1641248849205,0.00113685,3755.4,3755.1,1.0]
[1641248849603,0.00341054,3755.8,3755.1,1.0]
[1641248850003,0.00284212,3755.7,3755.0,0.00113685]
[1641248850410,0.00227369,3755.6,3755.0,0.00113685]
[1641248850808,0.00170527,3755.5,3755.0,0.00113685]
[1641248851211,0.00113685,3755.4,3755.0,0.00113685]
[1641248851610,0.00341054,3755.8,3755.0,1.00113685]
[1641248851812,0.00341054,3755.8,3755.0,0.00113685]
[1641248852010,0.00284212,3755.7,3755.0,2.48022149]
[1641248852211,0.00284212,3755.7,3755.3,1.1043313]
[1641248852414,0.00227369,3755.6,3755.3,1.1043313]
[1641248852862,0.00170527,3755.5,3755.3,1.1043313]
[1641248853064,0.00170527,3755.5,3755.1,0.03090177]
[1641248853257,0.00113685,3755.4,3755.1,0.03090177]
[1641248853660,0.00341054,3755.8,3755.1,0.03090177]
[1641248854059,0.00284212,3755.7,3755.1,0.03090177]
[1641248854459,0.00227369,3755.6,3755.1,0.03090177]
[1641248854659,0.00227369,3755.6,3755.2,1.08043326]
[1641248854861,0.00170527,3755.5,3755.2,1.08043326]
[1641248855261,0.00113685,3755.4,3755.2,1.08043326]
[1641248855660,0.00341054,3755.8,3755.2,1.08043326]
[1641248856061,0.00284212,3755.7,3755.2,1.08043326]
[1641248856412,0.00284212,3755.7,3755.1,0.03090177]
[1641248856413,0.00227369,3755.6,3755.1,0.03090177]
[1641248856814,0.00170527,3755.5,3755.1,0.03090177]
[1641248857216,0.00113685,3755.4,3755.1,0.03090177]
[1641248857619,0.00341054,3755.8,3755.1,0.03090177]
[1641248858023,0.00284212,3755.7,3755.1,0.03090177]
[1641248858220,0.00378914,3755.7,3755.1,0.03090177]
[1641248858421,0.00227369,3755.6,3755.1,0.03090177]
[1641248858820,0.00170527,3755.5,3755.1,0.03090177]
[1641248859221,0.00113685,3755.4,3755.1,0.03090177]
[1641248859619,0.00227369,3755.6,3755.1,0.03090177]
[1641248860020,0.00094702,3755.7,3755.1,0.03090177]
[1641248860021,0.00170527,3755.5,3755.1,0.03090177]
[1641248860459,0.00094702,3755.7,3755.1,0.03090177]
[1641248860661,0.00094702,3755.7,3755.2,0.00113685]
[1641248860860,1.36004385,3756.7,3755.2,0.00113685]
[1641248861359,0.00568424,3756.6,3755.2,0.00227369]
[1641248861759,0.00511581,3756.5,3755.2,0.00227369]
[1641248862159,0.00454739,3756.4,3755.2,0.00227369]
[1641248862659,0.00397897,3756.3,3755.2,0.00227369]
[1641248863061,0.00341054,3756.2,3755.2,2.47731745]
[1641248863262,0.00341054,3756.2,3755.2,0.00227369]
[1641248863459,0.00284212,3756.1,3755.3,0.00170527]
[1641248863660,0.00284212,3756.1,3755.2,1.00227369]
[1641248863924,0.0022737,3756.0,3755.2,3.48888035]
[1641248864113,0.0022737,3756.0,3755.3,0.00170527]
[1641248864414,0.00170527,3755.9,3755.2,18.09234825]
[1641248864615,0.00170527,3755.9,3755.4,15.6]
[1641248864813,0.00113685,3755.8,3755.4,15.6]
[1641248865013,0.00113685,3755.8,3755.5,1.0]
[1641248865211,1.5753927,3756.9,3755.4,2.47671918]
[1641248865212,0.00682109,3756.8,3755.4,2.47671918]
[1641248865612,0.00625266,3756.7,3755.4,2.47671918]
[1641248866013,0.00682109,3756.8,3755.5,0.6656546]
[1641248866212,0.00682109,3756.8,3755.4,2.47671918]
[1641248866416,0.00625266,3756.7,3755.4,2.47671918]
[1641248866816,0.00682109,3756.8,3755.4,2.47671918]
[1641248867218,0.00625266,3756.7,3755.7,0.6656011]
[1641248867416,0.00625266,3756.7,3755.7,16.2656011]
[1641248867657,0.00682109,3756.8,3755.7,16.2656011]
[1641248868062,0.00625266,3756.7,3755.8,15.6]
[1641248868264,0.00625266,3756.7,3755.7,1.98771759]
[1641248868479,0.00682109,3756.8,3755.7,1.98771759]
[1641248868663,0.00682109,3756.8,3756.1,0.6655622]
[1641248868664,0.00083698,3756.7,3756.1,0.6655622]
[1641248868867,0.00708964,3756.7,3755.9,0.02439821]
[1641248869064,0.00708964,3756.7,3755.9,1.01161543]
[1641248869263,0.00708964,3756.7,3755.9,0.01161543]
[1641248869565,0.00708964,3756.7,3755.9,1.01161543]
[1641248869763,0.00708964,3756.7,3755.9,0.01161543]
[1641248869963,0.00708964,3756.7,3755.9,1.01161543]
[1641248870163,0.00708964,3756.7,3755.9,0.31161543]
[1641248870364,0.00708964,3756.7,3755.9,1.31161543]
[1641248870563,0.00708964,3756.7,3755.9,1.01161543]
[1641248870967,0.00708964,3756.7,3755.9,0.01161543]
[1641248872604,0.00708964,3756.7,3756.6,1.70398544]
[1641248873010,0.00708964,3756.7,3755.9,1.01161543]
[1641248873309,0.00708964,3756.7,3756.2,0.06458562]
[1641248875363,0.00708964,3756.7,3756.2,0.6655404]
[1641248876363,0.00708964,3756.7,3756.3,16.26549]
[1641248876568,0.00708964,3756.7,3756.4,1.0]
[1641248876768,0.00708964,3756.7,3756.2,0.6655404]
[1641248878372,1.5753927,3756.9,3756.3,0.6655]
[1641248878572,1.5753927,3756.9,3756.5,0.6655204]
[1641248878775,1.5753927,3756.9,3756.4,0.00170527]
[1641248879217,1.5753927,3756.9,3756.2,0.00284212]
[1641248879416,1.5753927,3756.9,3756.4,0.0117808]
[1641248879816,1.5753927,3756.9,3756.5,0.00113685]
[1641248880417,1.5753927,3756.9,3756.5,1.33216905]
[1641248881118,1.5753927,3756.9,3756.7,0.01257169]
[1641248881517,1.5753927,3756.9,3756.7,0.31257169]
[1641248882117,1.5753927,3756.9,3756.7,0.01257169]
[1641248882321,1.5753927,3756.9,3756.6,1.6655194]
[1641248882522,1.5753927,3756.9,3756.7,0.36086075]
[1641248882963,9.38057,3758.5,3757.2,0.36086075]
[1641248883166,1.91357,3758.5,3757.2,0.36086075]
[1641248883365,3.12040412,3758.6,3757.2,0.36086075]
[1641248883366,0.0096632,3758.4,3757.2,0.36086075]
[1641248883766,0.00909478,3758.3,3757.2,0.36086075]
[1641248884164,0.00852635,3758.2,3757.2,0.36086075]
[1641248884570,0.00795793,3758.1,3757.2,0.36086075]
[1641248884972,0.00738951,3758.0,3757.2,0.36086075]
[1641248885372,0.00682108,3757.9,3757.4,0.36086075]
[1641248885675,0.00682108,3757.9,3757.5,0.36086075]
[1641248885873,1.78946412,3758.6,3757.5,0.36086075]
[1641248885874,0.00625266,3757.8,3757.5,0.36086075]
[1641248886273,0.00568424,3757.7,3757.5,0.36086075]
[1641248886712,0.00511581,3757.6,3757.5,0.36086075]
[1641248887513,0.00511581,3757.6,3757.5,0.37290567]
[1641248888615,0.00511581,3757.6,3757.5,0.36086075]
[1641248890284,6.38498,3759.6,3757.5,0.36086075]
[1641248890285,6.00338474,3760.1,3757.6,0.6653]
[1641248890483,4.39194088,3760.1,3759.3,0.01292268]
[1641248890681,7.50423092,3760.7,3760.6,0.36086075]
[1641248890887,7.50423092,3760.7,3760.6,0.13086075]
[1641248891481,1.08153092,3760.7,3760.6,15.73086075]
[1641248891688,0.41913898,3760.8,3760.6,15.73086075]
[1641248892078,0.41913898,3760.8,3760.7,0.13086075]
[1641248892280,0.41913898,3760.8,3760.7,15.73086075]
[1641248892485,0.01818955,3760.8,3760.7,15.73086075]
[1641248892686,0.01818955,3760.8,3760.7,16.73086075]
[1641248892884,0.01818955,3760.8,3760.7,16.76786679]
[1641248893085,0.01818955,3760.8,3760.7,16.83378422]
[1641248893488,0.01818955,3760.8,3760.7,42.18611903]
[1641248893688,5.59683808,3761.2,3760.7,42.85078903]
[1641248893921,6.12,3761.2,3761.0,15.73086075]
[1641248894121,0.06495334,3762.0,3761.0,15.76335533]
[1641248894122,0.00170527,3761.1,3761.0,15.76335533]
[1641248894325,3.0670026,3763.3,3761.4,0.13086075]
[1641248894521,3.0670026,3763.3,3762.5,0.01291736]
[1641248894719,3.0670026,3763.3,3762.2,1.45963075]
[1641248894919,3.0670026,3763.3,3762.6,0.08086075]
[1641248895121,3.0670026,3763.3,3762.7,15.68086075]
[1641248895320,3.288e-05,3763.3,3762.7,15.71191549]
[1641248895522,0.5322,3764.9,3763.2,0.0122167]
[1641248895720,0.5322,3764.9,3763.6,0.08086075]
[1641248895920,0.01818955,3764.3,3763.8,0.08086075]
[1641248896324,1.0322,3764.9,3764.0,0.08086075]
[1641248896325,0.01762113,3764.2,3764.0,0.08086075]
[1641248896724,0.08722193,3765.2,3764.0,0.08086075]
[1641248896928,8.83287572,3766.2,3764.0,15.68086075]
[1641248897124,0.00341054,3764.8,3764.0,15.71761687]
[1641248897324,0.00341054,3764.8,3764.0,0.11761687]
[1641248897526,0.00341054,3764.8,3763.8,0.03142531]
[1641248897527,0.00284212,3764.7,3764.2,0.08086075]
[1641248897783,7.45418784,3766.5,3764.6,0.08086075]
[1641248897986,7.45418784,3766.5,3764.8,0.08086075]
[1641248898182,0.00682108,3765.9,3764.8,0.08086075]
[1641248898583,0.00625266,3765.8,3764.8,0.08086075]
[1641248898982,0.00568423,3765.7,3764.8,0.08086075]
[1641248899384,0.00511581,3765.6,3764.8,0.08086075]
[1641248899784,0.00454739,3765.5,3764.8,0.08086075]
[1641248900184,0.00397896,3765.4,3764.8,0.08086075]
[1641248900386,0.00397896,3765.4,3764.7,2.69269519]
[1641248900387,0.00397896,3765.4,3765.2,0.01282982]
[1641248900585,0.01593,3767.1,3765.2,0.01282982]
[1641248900586,0.00341054,3765.3,3765.2,0.01282982]
[1641248900984,0.01593,3767.1,3765.2,0.01282982]
[1641248901185,0.06494078,3766.7,3765.3,0.08086075]
[1641248901416,0.06494078,3766.7,3765.9,0.08086075]
[1641248901417,0.00511581,3766.2,3765.9,0.08086075]
[1641248901614,0.00511581,3766.2,3765.9,1.40834235]
[1641248901815,0.00454739,3766.1,3766.0,0.11480514]
[1641248902313,0.00454739,3766.1,3765.9,1.3274816]
[1641248902512,0.00454739,3766.1,3765.9,1.35920664]
[1641248902720,0.06494078,3766.7,3766.0,0.03242781]
[1641248903116,0.00511581,3766.2,3766.0,0.03242781]
[1641248903518,0.00454739,3766.1,3765.9,0.03172504]
[1641248903917,0.00397896,3766.0,3765.9,0.03172504]
[1641248905772,0.01593,3767.1,3766.0,14.22143104]
[1641248905974,0.01593,3767.1,3766.0,20.09244163]
[1641248906272,0.00113685,3766.2,3766.1,0.0362875]
[1641248907376,0.00113685,3766.2,3766.1,2.64573605]
[1641248907573,0.00113685,3766.2,3766.1,0.0362875]
[1641248908176,0.00113685,3766.2,3766.1,0.06802934]
[1641248908378,0.00113685,3766.2,3766.1,0.08039127]
[1641248908582,0.00113685,3766.2,3766.1,1.1463087]
[1641248908778,0.00113685,3766.2,3766.1,1.08039127]
[1641248909018,0.00113685,3766.2,3766.1,0.08039127]
[1641248909217,0.00113685,3766.2,3766.1,18.33717787]
[1641248909422,7.49970803,3769.0,3766.7,15.6]
[1641248909619,7.49970803,3769.0,3766.9,15.61210354]
[1641248909620,0.00605671,3768.8,3766.9,15.61210354]
[1641248909818,0.00605671,3768.8,3766.9,15.64417701]
[1641248909819,0.00454739,3767.0,3766.9,15.64417701]
[1641248910025,7.49970803,3769.0,3766.9,15.64417701]
[1641248910221,0.03185671,3768.8,3767.1,15.6]
[1641248910421,0.0096632,3768.7,3767.1,15.63909549]
[1641248910619,0.0096632,3768.7,3767.2,2.6567866]
[1641248910822,7.52323511,3770.0,3767.8,0.0491637]
[1641248910823,0.00909477,3768.6,3767.8,0.0491637]
[1641248911021,0.00909477,3768.6,3767.8,0.01205497]
[1641248911222,7.52323511,3770.0,3767.8,0.01205497]
[1641248911223,0.00852635,3768.5,3767.8,0.01205497]
[1641248911721,0.00795793,3768.4,3767.6,15.63554213]
[1641248911923,0.00795793,3768.4,3768.1,1.3267733]
[1641248912124,0.0073895,3768.3,3768.2,0.03582]
[1641248913188,0.0073895,3768.3,3768.2,0.04623143]
[1641248913384,0.02814773,3769.6,3768.3,14.2180205]
[1641248913587,0.02814773,3769.6,3768.5,0.6633845]
[1641248913787,0.00682108,3769.5,3768.3,14.2180205]
[1641248913989,0.00682108,3769.5,3768.3,14.25128437]
[1641248914189,0.00625266,3769.4,3768.3,14.25128437]
[1641248914492,0.00568424,3769.3,3768.3,14.25128437]
[1641248914690,0.01002959,3770.0,3768.3,14.25128437]
[1641248914889,0.02814773,3769.6,3768.3,14.25128437]
[1641248915094,0.00113684,3769.5,3768.9,0.01273398]
[1641248915590,0.00113684,3769.5,3769.0,0.00170527]
[1641248915992,0.00113684,3769.5,3768.5,0.6633817]
[1641248915993,0.00113684,3769.5,3768.5,0.03659265]
[1641248916193,0.00113684,3769.5,3768.6,0.00397897]
[1641248916631,0.00113684,3769.5,3768.4,2.66190241]
[1641248916825,0.00113684,3769.5,3768.4,0.04494054]
[1641248917026,0.00113684,3769.5,3768.5,0.00454739]
[1641248917425,0.00113684,3769.5,3768.4,0.00511581]
[1641248917831,1.18402042,3771.1,3768.4,0.00511581]
[1641248918029,0.06591743,3770.8,3768.5,15.6]
[1641248918231,0.0022737,3769.9,3768.8,0.01274424]
[1641248918729,0.00170528,3769.8,3768.9,0.01381755]
[1641248919131,0.02401489,3769.7,3769.0,0.00284211]
[1641248919330,0.00113685,3769.7,3769.0,0.0350579]
[1641248919530,0.02969913,3770.7,3769.0,0.0350579]
[1641248919733,0.02969913,3770.7,3769.1,0.00227369]
[1641248919931,0.00625266,3770.6,3769.1,0.00227369]
[1641248920198,0.02287804,3770.5,3769.1,0.00227369]
[1641248920384,0.02856228,3770.5,3769.1,0.00227369]
[1641248920585,0.00511582,3770.4,3769.1,0.00227369]
[1641248920787,0.02287804,3770.3,3769.1,0.00227369]
[1641248920987,0.02742543,3770.3,3769.1,0.00227369]